bitfinex/quotes_BTCUSD_20240911
["timestamp","ask_amount","ask_price","bid_price","bid_amount"]
[1726051272376,0.139918,56649.0,56637.0,0.00374724]
[1726051272377,0.176559,56639.0,56637.0,0.00374724]
[1726051272627,0.176559,56638.0,56637.0,0.00374724]
[1726051275313,0.529623,56644.0,56643.0,0.00374724]
[1726051275783,0.629623,56644.0,56643.0,0.00474724]
[1726051275989,0.629623,56644.0,56643.0,0.00574724]
[1726051276584,0.65729321,56644.0,56643.0,0.00574724]
[1726051276891,0.65729321,56644.0,56643.0,0.00474724]
[1726051277332,0.66229321,56644.0,56643.0,0.00574724]
[1726051277566,1.46999303,56644.0,56643.0,0.002]
[1726051277802,1.36345721,56644.0,56643.0,0.001]
[1726051278284,1.36845721,56644.0,56643.0,0.001]
[1726051278516,1.36845721,56644.0,56643.0,0.002]
[1726051278740,1.36345721,56644.0,56643.0,0.001]
[1726051278966,1.36845721,56644.0,56643.0,0.002]
[1726051279196,1.01537521,56644.0,56643.0,0.001]
[1726051279665,1.01537521,56644.0,56643.0,0.002]
[1726051280445,0.982705,56644.0,56643.0,0.001]
[1726051280676,0.996705,56644.0,56643.0,0.002]
[1726051284677,1.3774589,56644.0,56643.0,0.002]
[1726051284929,2.12445918,56644.0,56643.0,0.002]
[1726051285154,2.38726993,56644.0,56643.0,0.002]
[1726051285386,2.47010614,56644.0,56643.0,0.002]
[1726051285628,2.47210614,56644.0,56643.0,0.002]
[1726051286074,2.48660567,56644.0,56643.0,0.002]
[1726051286318,2.48460567,56644.0,56643.0,0.002]
[1726051287525,2.30512804,56644.0,56643.0,0.002]
[1726051288197,2.30594604,56644.0,56643.0,0.002]
[1726051290143,2.27827414,56644.0,56643.0,0.002]
[1726051293241,2.30594916,56644.0,56643.0,0.002]
[1726051295160,1.95286716,56644.0,56643.0,0.002]
[1726051295379,2.02364216,56644.0,56643.0,0.002]
[1726051296037,1.87934216,56644.0,56643.0,0.002]
[1726051296259,1.82650595,56644.0,56643.0,0.002]
[1726051296474,1.87935205,56644.0,56643.0,0.002]
[1726051296912,1.02519802,56644.0,56643.0,0.002]
[1726051298397,0.176555,56640.0,56636.0,0.10538324]
[1726051298628,0.1,56639.0,56636.0,0.10538324]
[1726051299849,0.1,56639.0,56637.0,0.00374724]
[1726051300095,0.27655,56641.0,56637.0,0.00374724]
[1726051300334,0.1,56641.0,56637.0,0.00374724]
[1726051300597,0.188359,56644.0,56637.0,0.18030924]
[1726051300841,0.188359,56644.0,56638.0,0.00374724]
[1726051300842,0.1,56643.0,56638.0,0.00374724]
[1726051301296,0.002,56639.0,56638.0,0.18030624]
[1726051301738,0.1,56643.0,56638.0,0.18030624]
[1726051302003,0.276544,56643.0,56638.0,0.18030624]
[1726051302196,0.107,56643.0,56638.0,0.00474724]
[1726051302417,0.007,56643.0,56640.0,0.00374724]
[1726051302662,0.183546,56643.0,56640.0,0.00374724]
[1726051302910,0.1,56642.0,56640.0,0.00374724]
[1726051304324,0.1,56642.0,56640.0,0.00474724]
[1726051304548,0.105,56642.0,56640.0,0.00574724]
[1726051304780,0.105,56642.0,56641.0,0.17655]
[1726051305029,0.105,56642.0,56641.0,0.18029724]
[1726051305030,0.005,56642.0,56641.0,0.18029724]
[1726051305272,0.005,56642.0,56641.0,0.67399824]
[1726051305525,0.005,56642.0,56641.0,1.02709924]
[1726051305795,0.005,56642.0,56641.0,1.90924142]
[1726051306022,0.005,56642.0,56641.0,2.40655774]
[1726051306499,0.000818,56644.0,56643.0,0.321344]
[1726051306721,0.000818,56644.0,56643.0,1.10069511]
[1726051306945,0.000818,56644.0,56643.0,1.45378311]
[1726051307222,0.000818,56644.0,56643.0,1.7011177]
[1726051307446,0.000818,56644.0,56643.0,2.3096641]
[1726051307663,0.1,56662.0,56648.0,0.35117524]
[1726051307664,0.52782518,56662.0,56648.0,0.35117524]
[1726051307886,0.52782518,56662.0,56648.0,1.81741647]
[1726051308114,0.52782518,56662.0,56648.0,2.17047347]
[1726051308410,0.52782518,56662.0,56648.0,2.83172843]
[1726051308637,0.52782518,56662.0,56648.0,0.92739469]
[1726051308860,0.52782518,56662.0,56648.0,1.20122942]
[1726051308861,0.176489,56661.0,56648.0,1.20122942]
[1726051309084,0.176492,56660.0,56648.0,1.20122942]
[1726051309310,0.52782518,56662.0,56648.0,1.20122942]
[1726051309311,0.176497,56658.0,56648.0,1.20122942]
[1726051309528,0.176493,56660.0,56648.0,1.20122942]
[1726051309753,0.176493,56660.0,56648.0,0.84817242]
[1726051309754,0.176495,56659.0,56648.0,0.84817242]
[1726051309981,0.176498,56658.0,56648.0,0.84817242]
[1726051310429,0.176498,56658.0,56648.0,0.85617242]
[1726051310430,0.001818,56649.0,56648.0,0.85617242]
[1726051310647,0.001818,56649.0,56648.0,0.86717242]
[1726051310887,0.000818,56649.0,56648.0,0.85917242]
[1726051311332,0.000818,56649.0,56648.0,1.21622942]
[1726051312462,0.000818,56649.0,56648.0,1.20522942]
[1726051312674,0.000818,56649.0,56648.0,1.20122942]
[1726051312893,0.000818,56649.0,56648.0,1.37166056]
[1726051313119,0.000818,56649.0,56648.0,1.36066056]
[1726051313349,0.000818,56649.0,56648.0,1.35666056]
[1726051313780,0.000818,56649.0,56648.0,1.36766056]
[1726051313782,0.000818,56649.0,56648.0,1.21622942]
[1726051314003,0.000818,56649.0,56648.0,1.22722942]
[1726051314224,0.000818,56649.0,56648.0,1.22322942]
[1726051314466,0.000818,56649.0,56648.0,1.22722942]
[1726051315396,0.000818,56649.0,56648.0,1.38139897]
[1726051315848,0.000818,56649.0,56648.0,1.39239897]
[1726051316082,0.000818,56649.0,56648.0,1.38139897]
[1726051316368,0.000818,56649.0,56648.0,1.37739897]
[1726051316571,0.000818,56649.0,56648.0,1.21722942]
[1726051317015,0.000818,56649.0,56648.0,1.57028642]
[1726051317234,0.000818,56649.0,56648.0,1.55428642]
[1726051317513,0.001818,56649.0,56648.0,1.57528642]
[1726051317951,0.000818,56649.0,56648.0,1.56828642]
[1726051318402,0.001818,56649.0,56648.0,1.57528642]
[1726051318642,0.001818,56649.0,56648.0,1.56128642]
[1726051319061,0.001818,56649.0,56648.0,1.57528642]
[1726051319495,0.000818,56649.0,56648.0,1.55428642]
[1726051319708,0.000818,56649.0,56648.0,1.56128642]
[1726051319928,0.001818,56649.0,56648.0,1.56128642]
[1726051320191,0.001818,56649.0,56648.0,1.57528642]
[1726051320411,0.000818,56649.0,56648.0,1.56828642]
[1726051320622,0.001818,56649.0,56648.0,1.57528642]
[1726051320836,0.001818,56649.0,56648.0,1.75145597]
[1726051321090,0.000818,56649.0,56648.0,1.21522942]
[1726051321330,0.000818,56649.0,56648.0,0.54733224]
[1726051321519,0.001818,56649.0,56648.0,0.55433224]
[1726051321802,0.001818,56649.0,56648.0,0.01074724]
[1726051322027,0.001818,56649.0,56648.0,0.18727524]
[1726051322250,0.001818,56649.0,56648.0,0.20127524]
[1726051322468,0.01762623,56649.0,56648.0,0.18727524]
[1726051322704,0.000818,56649.0,56643.0,0.00374724]
[1726051322928,0.000818,56649.0,56648.0,0.014]
[1726051322929,0.883445,56649.0,56648.0,0.014]
[1726051323151,0.596194,56649.0,56648.0,0.007]
[1726051323371,0.676494,56649.0,56648.0,0.013]
[1726051323598,0.69125571,56649.0,56643.0,0.00374724]
[1726051323825,0.19229171,56648.0,56643.0,0.00374724]
[1726051324047,0.19229371,56647.0,56643.0,0.00374724]
[1726051324264,0.19229371,56647.0,56643.0,0.00538124]
[1726051324486,0.01576171,56646.0,56643.0,0.00538124]
[1726051325389,0.01576171,56645.0,56643.0,0.00538124]
[1726051325607,0.01577475,56644.0,56643.0,0.00538124]
[1726051326039,0.02766821,56646.0,56643.0,0.00538124]
[1726051326260,0.01577465,56644.0,56643.0,0.00538124]
[1726051326501,0.01576851,56644.0,56643.0,0.00538124]
[1726051326710,0.01576851,56644.0,56643.0,0.00638124]
[1726051326932,0.01576851,56644.0,56643.0,0.53601324]
[1726051327148,0.02766821,56646.0,56645.0,0.53336124]
[1726051327363,0.02766821,56646.0,56645.0,0.88643724]
[1726051327891,0.000818,56649.0,56648.0,0.176528]
[1726051328116,0.000818,56649.0,56648.0,0.53333224]
[1726051328358,0.01669903,56649.0,56648.0,0.88638924]
[1726051328572,0.000818,56649.0,56648.0,0.88638924]
[1726051329702,0.000818,56649.0,56648.0,1.03653684]
[1726051329921,0.000818,56649.0,56648.0,0.35680424]
[1726051330149,0.000818,56649.0,56648.0,0.53333224]
[1726051330381,0.01669308,56649.0,56648.0,0.53333224]
[1726051330823,0.02669308,56649.0,56648.0,0.53433224]
[1726051332909,0.02669308,56649.0,56648.0,0.00474724]
[1726051333149,0.69896908,56649.0,56648.0,0.001]
[1726051333877,0.16939308,56649.0,56648.0,0.001]
[1726051334118,0.16939308,56649.0,56648.0,0.00474724]
[1726051334313,0.16939308,56649.0,56648.0,0.73584299]
[1726051334314,0.02669308,56649.0,56648.0,0.73584299]
[1726051334592,0.02669308,56649.0,56648.0,1.08889999]
[1726051335506,0.010818,56649.0,56648.0,1.08889999]
[1726051335726,0.01680063,56649.0,56648.0,0.73484299]
[1726051335963,0.02680063,56649.0,56648.0,0.73584299]
[1726051336179,0.02680063,56649.0,56648.0,1.08889999]
[1726051336402,0.01680063,56649.0,56648.0,1.09889999]
[1726051336644,0.01680063,56649.0,56648.0,1.08789999]
[1726051336872,0.01680063,56649.0,56648.0,1.08889999]
[1726051337079,0.01679901,56649.0,56648.0,1.08889999]
[1726051337298,0.01679901,56649.0,56648.0,1.08789999]
[1726051337537,0.01679901,56649.0,56648.0,1.09189999]
[1726051337759,0.01679901,56649.0,56648.0,1.86463827]
[1726051337760,0.000818,56649.0,56648.0,1.86463827]
[1726051337985,0.000818,56649.0,56648.0,2.32609527]
[1726051338170,0.000818,56649.0,56648.0,1.97303827]
[1726051338432,0.0024544,56663.0,56662.0,0.18023224]
[1726051338676,0.01854168,56663.0,56662.0,0.18023224]
[1726051338923,0.01854185,56663.0,56662.0,0.53320224]
[1726051340239,0.01854185,56663.0,56662.0,0.00374724]
[1726051340491,0.19502385,56663.0,56662.0,0.00374724]
[1726051340704,0.63628785,56663.0,56662.0,0.001]
[1726051340919,0.28332385,56663.0,56662.0,0.00474724]
[1726051341141,0.10684185,56663.0,56662.0,0.00474724]
[1726051344585,0.13450214,56663.0,56662.0,0.00474724]
[1726051345516,0.11841469,56663.0,56662.0,0.00474724]
[1726051345750,0.7269843,56663.0,56662.0,0.00474724]
[1726051345966,0.72698337,56663.0,56662.0,0.00474724]
[1726051346188,0.19753737,56663.0,56662.0,0.00474724]
[1726051347351,0.37401937,56663.0,56662.0,0.00474724]
[1726051347793,0.37401937,56663.0,56662.0,0.001]
[1726051348458,0.72698337,56663.0,56662.0,0.001]
[1726051349103,0.72780037,56663.0,56662.0,0.001]
[1726051350191,0.70014008,56663.0,56662.0,0.001]
[1726051352828,0.6840174,56663.0,56662.0,0.001]
[1726051353285,0.3310534,56663.0,56662.0,0.001]
[1726051356859,0.1545714,56663.0,56662.0,0.001]
[1726051357714,0.3310534,56663.0,56662.0,0.001]
[1726051358790,0.6840174,56663.0,56662.0,0.001]
[1726051362533,0.3310534,56663.0,56662.0,0.001]
[1726051362922,0.6840174,56663.0,56662.0,0.001]
[1726051366329,1.0369814,56663.0,56662.0,0.001]
[1726051367499,0.6840174,56663.0,56662.0,0.001]
[1726051368644,1.0369814,56663.0,56662.0,0.001]
[1726051371979,0.6840174,56663.0,56662.0,0.001]
[1726051375356,0.6067174,56663.0,56662.0,0.001]
[1726051375588,0.1907534,56663.0,56662.0,0.001]
[1726051376755,0.0142714,56663.0,56662.0,0.001]
[1726051377013,0.1907534,56663.0,56662.0,0.001]
[1726051379957,0.5437174,56663.0,56662.0,0.001]
[1726051380919,1.2496454,56663.0,56662.0,0.001]
[1726051381143,1.8388964,56663.0,56662.0,0.001]
[1726051381395,2.33853712,56663.0,56662.0,0.001]
[1726051381638,3.05346456,56663.0,56662.0,0.001]
[1726051381883,1.49496046,56650.0,56649.0,0.001634]
[1726051382112,1.82382166,56650.0,56649.0,0.001634]
[1726051382368,2.2875926,56650.0,56649.0,0.001634]
[1726051382610,2.4757926,56650.0,56649.0,0.001634]
[1726051382841,2.3223714,56645.0,56644.0,0.001634]
[1726051383068,2.89954586,56645.0,56644.0,0.001634]
[1726051383880,3.00472472,56645.0,56644.0,0.001634]
[1726051384370,3.35780072,56645.0,56644.0,0.001634]
[1726051384602,3.25262186,56645.0,56644.0,0.002634]
[1726051384836,3.25262186,56645.0,56644.0,0.001634]
[1726051384837,3.28029776,56645.0,56644.0,0.001634]
[1726051385333,2.955823,56645.0,56644.0,0.001634]
[1726051385583,2.37790198,56645.0,56644.0,0.001634]
[1726051386048,2.37790198,56645.0,56644.0,0.002634]
[1726051386049,2.90990198,56645.0,56644.0,0.002634]
[1726051386275,2.93290198,56645.0,56644.0,0.002634]
[1726051386527,3.31223074,56645.0,56644.0,0.002634]
[1726051386966,2.95915474,56645.0,56644.0,0.002634]
[1726051387199,3.31223074,56645.0,56644.0,0.002634]
[1726051388300,2.95915474,56645.0,56644.0,0.002634]
[1726051388533,2.45715474,56645.0,56644.0,0.002634]
[1726051388751,2.43615474,56645.0,56644.0,0.002634]
[1726051390127,2.38022608,56645.0,56644.0,0.002634]
[1726051390659,2.38222608,56645.0,56644.0,0.002634]
[1726051391329,2.38240185,56645.0,56644.0,0.002634]
[1726051391591,2.36628315,56645.0,56644.0,0.002634]
[1726051391802,2.38040186,56645.0,56644.0,0.002634]
[1726051392229,2.31968191,56645.0,56644.0,0.002634]
[1726051392445,2.33567411,56645.0,56644.0,0.002634]
[1726051392655,2.33568053,56645.0,56644.0,0.002634]
[1726051393135,2.36335522,56645.0,56644.0,0.002634]
[1726051395301,2.37779567,56645.0,56644.0,0.002634]
[1726051395825,2.37778051,56645.0,56644.0,0.002634]
[1726051396042,2.44855751,56645.0,56644.0,0.002634]
[1726051398619,2.45055751,56645.0,56644.0,0.002634]
[1726051399795,2.44855751,56645.0,56644.0,0.002634]
[1726051400259,1.64014133,56645.0,56644.0,0.002634]
[1726051400495,1.99629504,56645.0,56644.0,0.002634]
[1726051400757,2.02629504,56645.0,56644.0,0.002634]
[1726051400981,2.02829504,56645.0,56644.0,0.002634]
[1726051401221,2.09159504,56645.0,56644.0,0.002634]
[1726051401446,2.32955171,56645.0,56644.0,0.002634]
[1726051401659,2.42955171,56645.0,56644.0,0.002634]
[1726051402582,3.30869911,56645.0,56644.0,0.002634]
[1726051403475,2.9832989,56645.0,56644.0,0.002634]
[1726051403904,3.0132989,56645.0,56644.0,0.002634]
[1726051404128,3.0132989,56645.0,56630.0,0.001636]
[1726051404129,1.32403976,56644.0,56630.0,0.001636]
[1726051404344,0.561669,56639.0,56630.0,0.001636]
[1726051404565,1.90134804,56639.0,56630.0,0.001636]
[1726051405013,2.63525186,56639.0,56630.0,0.001636]
[1726051405230,2.79210853,56639.0,56630.0,0.001636]
[1726051405463,0.002,56631.0,56626.0,0.001634]
[1726051405689,2.02421353,56639.0,56626.0,0.001634]
[1726051405690,1.9652754,56627.0,56626.0,0.001634]
[1726051405937,2.31738513,56627.0,56626.0,0.001634]
[1726051406171,2.33326321,56627.0,56626.0,0.001634]
[1726051406407,2.98594611,56627.0,56626.0,0.001634]
[1726051407068,2.98394611,56627.0,56626.0,0.001634]
[1726051407298,2.99794611,56627.0,56626.0,0.001634]
[1726051407752,3.00033553,56627.0,56626.0,0.001634]
[1726051407968,3.01433553,56627.0,56626.0,0.001634]
[1726051408397,3.01233553,56627.0,56626.0,0.001634]
[1726051408659,3.01433553,56627.0,56626.0,0.001634]
[1726051408880,3.02833553,56627.0,56626.0,0.002634]
[1726051409107,2.99845745,56627.0,56626.0,0.001634]
[1726051409333,2.99845745,56627.0,56624.0,0.0024544]
[1726051409334,1.2982,56625.0,56624.0,0.0024544]
[1726051409570,1.76023474,56625.0,56624.0,0.0024544]
[1726051409830,2.11343474,56625.0,56624.0,0.0024544]
[1726051410060,2.46663474,56625.0,56624.0,0.0024544]
[1726051410498,2.48063474,56625.0,56624.0,0.0024544]
[1726051410720,2.31760429,56625.0,56624.0,0.0024544]
[1726051410944,2.13943474,56625.0,56624.0,0.0024544]
[1726051411242,2.10243474,56625.0,56624.0,0.0024544]
[1726051411468,2.11643474,56625.0,56624.0,0.0024544]
[1726051411693,2.08643474,56625.0,56624.0,0.0024544]
[1726051412129,2.07243474,56625.0,56624.0,0.0024544]
[1726051412346,2.05634018,56625.0,56624.0,0.0024544]
[1726051412583,2.24855426,56625.0,56624.0,0.0034544]
[1726051412802,2.24855426,56625.0,56624.0,0.0024544]
[1726051412803,2.23455421,56625.0,56624.0,0.0024544]
[1726051413020,2.26255421,56625.0,56624.0,0.0034544]
[1726051413237,2.29023872,56625.0,56624.0,0.0024544]
[1726051413474,2.27623872,56625.0,56624.0,0.0024544]
[1726051413691,2.30423872,56625.0,56624.0,0.0034544]
[1726051413907,2.27623872,56625.0,56624.0,0.0024544]
[1726051414520,2.29923872,56625.0,56624.0,0.0024544]
[1726051415574,2.33602312,56625.0,56624.0,0.0524544]
[1726051415783,2.29928326,56625.0,56624.0,0.0524544]
[1726051416017,2.29928326,56625.0,56624.0,0.0534544]
[1726051416018,2.36611231,56625.0,56624.0,0.0534544]
[1726051416263,2.31328326,56625.0,56624.0,0.0534544]
[1726051416919,2.31797008,56625.0,56624.0,0.0534544]
[1726051419211,2.31797008,56625.0,56624.0,0.0550904]
[1726051420375,2.27628557,56625.0,56624.0,0.0550904]
[1726051420609,2.33137557,56625.0,56624.0,0.0550904]
[1726051420814,2.33137557,56625.0,56624.0,0.0540904]
[1726051421022,2.34537557,56625.0,56624.0,0.0550904]
[1726051422498,2.31737557,56625.0,56624.0,0.0540904]
[1726051422761,2.33037557,56625.0,56624.0,0.0550904]
[1726051423016,2.36937557,56625.0,56624.0,0.0550904]
[1726051423252,2.36937557,56625.0,56624.0,0.0540904]
[1726051423253,2.38405958,56625.0,56624.0,0.0540904]
[1726051423477,2.38205958,56625.0,56624.0,0.0550904]
[1726051423719,2.39405958,56625.0,56624.0,0.0550904]
[1726051424134,2.38205958,56625.0,56624.0,0.0540904]
[1726051424414,2.39405958,56625.0,56624.0,0.0550904]
[1726051425077,2.38013867,56625.0,56624.0,0.0550904]
[1726051425335,2.39413867,56625.0,56624.0,0.0550904]
[1726051425563,2.31213867,56625.0,56624.0,0.0550904]
[1726051425782,2.29904415,56625.0,56624.0,0.0550904]
[1726051426009,2.28197056,56625.0,56624.0,0.0550904]
[1726051426219,0.17664,56612.0,56611.0,0.02347807]
[1726051426428,0.72216806,56612.0,56611.0,0.02347807]
[1726051426851,1.07544906,56612.0,56611.0,0.02347807]
[1726051427065,1.10313467,56612.0,56611.0,0.02347807]
[1726051427924,1.10413467,56612.0,56611.0,0.02347807]
[1726051428604,1.11313467,56612.0,56611.0,0.02347807]
[1726051429115,0.56760661,56612.0,56611.0,0.02347807]
[1726051429321,0.58390135,56612.0,56611.0,0.10147807]
[1726051429533,0.67761879,56612.0,56611.0,0.10147807]
[1726051429751,0.93718235,56612.0,56611.0,0.10147807]
[1726051429964,0.93718235,56612.0,56611.0,0.02347807]
[1726051430657,0.93718235,56612.0,56605.0,0.00374724]
[1726051430658,0.176659,56606.0,56605.0,0.00374724]
[1726051430884,0.54627274,56606.0,56605.0,0.00374724]
[1726051431106,0.63623061,56606.0,56605.0,0.00374724]
[1726051431326,0.63623061,56606.0,56605.0,0.07034724]
[1726051431765,0.19295374,56606.0,56605.0,0.07034724]
[1726051431984,0.01629474,56606.0,56605.0,0.07034724]
[1726051432234,0.19295374,56606.0,56605.0,0.07034724]
[1726051432453,0.54623721,56606.0,56605.0,0.0666]
[1726051432668,0.95617993,56606.0,56605.0,0.0666]
[1726051432916,0.90155621,56606.0,56605.0,0.0666]
[1726051433151,0.01825921,56606.0,56605.0,0.0666]
[1726051433358,0.19491821,56606.0,56605.0,0.0666]
[1726051433573,0.22110932,56606.0,56605.0,0.07034724]
[1726051433785,0.22210932,56606.0,56605.0,0.07634724]
[1726051434244,0.22210932,56606.0,56605.0,0.07034724]
[1726051434245,0.22110932,56606.0,56605.0,0.07034724]
[1726051434460,0.19691821,56606.0,56605.0,0.07034724]
[1726051434653,0.20791821,56606.0,56605.0,0.07034724]
[1726051434872,0.03125921,56606.0,56605.0,0.15234724]
[1726051435087,0.02025921,56606.0,56605.0,0.15234724]
[1726051435551,0.03125921,56606.0,56605.0,0.15234724]
[1726051435774,0.015,56606.0,56605.0,0.15234724]
[1726051436029,0.03134781,56606.0,56605.0,0.15234724]
[1726051436928,0.03134781,56606.0,56605.0,1.03565924]
[1726051437358,0.03134781,56606.0,56605.0,0.68233424]
[1726051437602,0.03134781,56606.0,56605.0,0.32900924]
[1726051437845,0.01634781,56606.0,56605.0,0.32900924]
[1726051438085,0.01834781,56606.0,56605.0,0.69433424]
[1726051438305,0.01734781,56606.0,56605.0,0.32900924]
[1726051438527,0.01634781,56606.0,56605.0,0.15234724]
[1726051438746,0.01634781,56606.0,56605.0,0.07834724]
[1726051438747,0.01734781,56606.0,56605.0,0.07834724]
[1726051438966,0.01730747,56606.0,56605.0,0.07034724]
[1726051439203,0.002,56606.0,56605.0,0.08234724]
[1726051439501,0.95656971,56606.0,56605.0,0.07034724]
[1726051439734,0.95556971,56606.0,56605.0,0.07034724]
[1726051439952,0.19296656,56606.0,56605.0,0.07034724]
[1726051440613,0.19296656,56606.0,56605.0,0.07234724]
[1726051441050,0.54728556,56606.0,56605.0,0.08034724]
[1726051441269,0.90060456,56606.0,56605.0,0.0766]
[1726051441481,0.9016942,56606.0,56605.0,0.0666]
[1726051441664,0.529987,56605.0,56604.0,0.00374724]
[1726051441897,0.5463842,56605.0,56604.0,0.00374724]
[1726051442118,0.8997092,56605.0,56604.0,0.00374724]
[1726051442771,0.9007092,56605.0,56604.0,0.01074724]
[1726051443008,0.5473842,56605.0,56604.0,0.007]
[1726051443245,0.5473842,56605.0,56604.0,0.01074724]
[1726051443899,0.5483842,56605.0,56604.0,0.01074724]
[1726051444373,0.99187832,56605.0,56604.0,0.007]
[1726051444608,1.01956658,56605.0,56604.0,0.007]
[1726051444856,1.37289158,56605.0,56604.0,0.007]
[1726051445086,1.35649438,56605.0,56604.0,0.007]
[1726051445335,1.37283487,56605.0,56604.0,0.007]
[1726051445836,2.04609589,56605.0,56604.0,0.007]
[1726051446568,1.34087237,56605.0,56604.0,0.007]
[1726051446786,1.69419737,56605.0,56604.0,0.007]
[1726051447025,1.69319737,56605.0,56604.0,0.007]
[1726051447533,1.70319737,56605.0,56604.0,0.007]
[1726051447755,1.70319737,56605.0,56602.0,0.0024544]
[1726051447993,0.883345,56603.0,56602.0,0.0024544]
[1726051448214,1.17562567,56603.0,56602.0,0.0024544]
[1726051449629,1.18962567,56603.0,56602.0,0.0034544]
[1726051450083,0.88336,56602.0,56601.0,8.84e-05]
[1726051450300,0.99970049,56602.0,56601.0,8.84e-05]
[1726051450521,0.64635649,56602.0,56601.0,8.84e-05]
[1726051450739,1.35304449,56602.0,56601.0,8.84e-05]
[1726051451413,1.44034449,56602.0,56601.0,8.84e-05]
[1726051451635,1.81623093,56602.0,56601.0,8.84e-05]
[1726051451876,1.86910879,56602.0,56601.0,8.84e-05]
[1726051452098,1.86210879,56602.0,56601.0,8.84e-05]
[1726051452351,1.87010879,56602.0,56601.0,8.84e-05]
[1726051452568,2.22445279,56602.0,56601.0,8.84e-05]
[1726051452790,2.25445279,56602.0,56601.0,8.84e-05]
[1726051453018,2.33327573,56602.0,56601.0,8.84e-05]
[1726051453248,2.28214789,56602.0,56601.0,8.84e-05]
[1726051453480,2.27414789,56602.0,56601.0,8.84e-05]
[1726051453918,2.28514789,56602.0,56601.0,8.84e-05]
[1726051454140,2.28914789,56602.0,56601.0,8.84e-05]
[1726051454377,2.27814789,56602.0,56601.0,8.84e-05]
[1726051454596,2.28754664,56602.0,56601.0,8.84e-05]
[1726051454871,2.28754664,56602.0,56601.0,0.0010884]
[1726051454872,2.31328534,56602.0,56601.0,0.0010884]
[1726051455519,2.31328534,56602.0,56601.0,8.84e-05]
[1726051455520,2.30428534,56602.0,56601.0,8.84e-05]
[1726051455768,2.29028534,56602.0,56601.0,8.84e-05]
[1726051456033,2.30228534,56602.0,56601.0,0.0010884]
[1726051457157,2.31628534,56602.0,56601.0,0.0010884]
[1726051457371,2.30428534,56602.0,56601.0,8.84e-05]
[1726051457588,2.23740748,56602.0,56601.0,8.84e-05]
[1726051457814,2.25140748,56602.0,56601.0,8.84e-05]
[1726051458029,2.26540748,56602.0,56601.0,0.0010884]
[1726051458363,2.26540748,56602.0,56601.0,8.84e-05]
[1726051458564,2.27740748,56602.0,56601.0,0.0010884]
[1726051458777,2.33026548,56602.0,56601.0,0.0010884]
[1726051459417,1.75731722,56602.0,56601.0,0.0010884]
[1726051459654,1.95884662,56602.0,56601.0,0.0010884]
[1726051459867,2.31219062,56602.0,56601.0,0.0010884]
[1726051460269,2.28449552,56602.0,56601.0,0.0010884]
[1726051461336,1.93115152,56602.0,56601.0,0.0010884]
[1726051461547,2.10732107,56602.0,56601.0,0.0010884]
[1726051462426,1.58612212,56602.0,56601.0,0.0010884]
[1726051462632,0.07347794,56602.0,56601.0,0.0010884]
[1726051462888,0.60349394,56602.0,56601.0,0.0010884]
[1726051463095,0.95683794,56602.0,56601.0,0.0010884]
[1726051463747,0.94283794,56602.0,56601.0,0.0010884]
[1726051463911,1.21877812,56602.0,56601.0,0.0010884]
[1726051464489,1.40294767,56602.0,56601.0,0.0010884]
[1726051464752,1.38620843,56602.0,56601.0,0.0010884]
[1726051464983,1.38581426,56602.0,56601.0,0.0010884]
[1726051465202,0.85630071,56602.0,56601.0,0.0010884]
[1726051465422,1.20964471,56602.0,56601.0,0.0010884]
[1726051466978,0.85630071,56602.0,56601.0,0.0010884]
[1726051467420,1.18364471,56602.0,56601.0,8.84e-05]
[1726051467852,0.83030071,56602.0,56601.0,8.84e-05]
[1726051468060,1.18364471,56602.0,56601.0,8.84e-05]
[1726051468496,1.18464471,56602.0,56601.0,8.84e-05]
[1726051468953,0.83130071,56602.0,56601.0,8.84e-05]
[1726051469182,0.12534453,56602.0,56601.0,8.84e-05]
[1726051470949,0.02534453,56602.0,56601.0,8.84e-05]
[1726051471184,0.009,56602.0,56601.0,8.84e-05]
[1726051471395,0.0252122,56602.0,56601.0,8.84e-05]
[1726051471881,0.0252122,56602.0,56601.0,0.00383564]
[1726051472107,0.0252122,56602.0,56601.0,0.14703564]
[1726051472963,0.0172122,56602.0,56601.0,0.14703564]
[1726051473172,0.0172122,56602.0,56601.0,0.14903564]
[1726051473391,0.0162122,56602.0,56601.0,0.14903564]
[1726051473814,0.0162122,56602.0,56601.0,0.14703564]
[1726051474029,0.0182122,56602.0,56601.0,0.14703564]
[1726051474961,0.01917957,56602.0,56601.0,0.15303564]
[1726051475197,0.01817957,56602.0,56601.0,0.14703564]
[1726051475413,0.01717957,56602.0,56601.0,0.15403564]
[1726051475869,0.01817957,56602.0,56601.0,0.15403564]
[1726051476339,0.01617957,56602.0,56601.0,0.14703564]
[1726051476583,0.01717957,56602.0,56601.0,0.07723564]
[1726051477908,0.01617957,56602.0,56601.0,0.06923564]
[1726051478130,0.01717957,56602.0,56601.0,0.07723564]
[1726051479733,0.01799757,56602.0,56601.0,0.07723564]
[1726051482640,0.01799757,56602.0,56601.0,0.07641368]
[1726051484873,0.001818,56602.0,56601.0,0.07641368]
[1726051485089,0.03395152,56602.0,56601.0,0.07641368]
[1726051485561,0.01788412,56602.0,56601.0,0.07641368]
[1726051488891,0.001818,56602.0,56601.0,0.07641368]
[1726051490329,0.01784165,56602.0,56601.0,0.07641368]
[1726051491962,0.01784165,56602.0,56601.0,0.07804968]
[1726051494712,0.01769168,56602.0,56601.0,0.07804968]
[1726051494918,0.001818,56602.0,56601.0,0.07804968]
[1726051495128,0.01769176,56602.0,56601.0,0.07804968]
[1726051497859,0.01769176,56602.0,56601.0,0.30753699]
[1726051498106,0.01769176,56602.0,56601.0,0.27957908]
[1726051498734,0.0175015,56602.0,56601.0,0.27957908]
[1726051499014,0.0175015,56602.0,56601.0,0.28157908]
[1726051499233,0.0175015,56602.0,56601.0,0.27957908]
[1726051500186,0.001818,56602.0,56601.0,0.27957908]
[1726051500596,0.001818,56602.0,56601.0,0.28157908]
[1726051501948,0.001818,56602.0,56601.0,0.01264968]
[1726051502371,0.017445,56602.0,56601.0,0.01264968]
[1726051503028,0.001818,56602.0,56601.0,0.01264968]
[1726051503247,0.001818,56602.0,56595.0,0.11616854]
[1726051503248,0.01736242,56602.0,56595.0,0.05594968]
[1726051503462,0.001818,56602.0,56595.0,0.05594968]
[1726051504330,0.17849,56602.0,56595.0,0.05594968]
[1726051504560,0.17749,56602.0,56595.0,0.05594968]
[1726051504768,0.17849,56602.0,56595.0,0.06394968]
[1726051504977,0.001818,56602.0,56595.0,0.06394968]
[1726051505192,0.001818,56602.0,56601.0,0.001636]
[1726051505640,0.02950639,56602.0,56601.0,0.001636]
[1726051506089,0.20517839,56602.0,56601.0,0.001636]